fUST/lending_fUST_20251207
["ID","MTS","AMOUNT","RATE_DAILY","PERIOD"]
[396538336,1765043367276,-872.49,8.493e-05,2]
[396538337,1765043367299,-501.3,8.493e-05,2]
[396538338,1765043367322,-500.0,8.493e-05,2]
[396538339,1765043367344,-500.0,8.493e-05,2]
[396538340,1765043367368,-701.37,8.493e-05,2]
[396538341,1765043367393,-500.33916403,8.493e-05,2]
[396538342,1765043367415,-688.79,8.493e-05,2]
[396538343,1765043367439,-500.0,8.493e-05,2]
[396538344,1765043367462,-532.52207946,8.493e-05,2]
[396538345,1765043367485,-1475.56,8.493e-05,2]
[396538346,1765043367508,-500.0,8.493e-05,2]
[396538347,1765043367531,-500.0,8.493e-05,2]
[396538348,1765043367554,-500.0,8.493e-05,2]
[396538349,1765043367576,-500.0,8.493e-05,2]
[396538350,1765043367602,-500.0,8.493e-05,2]
[396538351,1765043367804,-500.0,8.493e-05,2]
[396538352,1765043367831,-500.0,8.493e-05,2]
[396538353,1765043367855,-500.0,8.493e-05,2]
[396538354,1765043367882,-500.0,8.493e-05,2]
[396538355,1765043367909,-1042.05,8.493e-05,2]
[396538356,1765043367935,-500.0,8.493e-05,2]
[396538357,1765043367959,-500.0,8.493e-05,2]
[396538358,1765043367983,-500.0,8.493e-05,2]
[396538359,1765043368009,-500.0,8.493e-05,2]
[396538360,1765043368033,-500.0,8.493e-05,2]
[396538361,1765043368058,-2225.52,8.493e-05,2]
[396538362,1765043368082,-153.70663293,8.493e-05,2]
[396538363,1765043368107,-500.0,8.493e-05,2]
[396538364,1765043368129,-500.0,8.493e-05,2]
[396538365,1765043368152,-500.0,8.493e-05,2]
[396538366,1765043368175,-500.0,8.493e-05,2]
[396538367,1765043368198,-500.0,8.493e-05,2]
[396538368,1765043368222,-1000.23,8.493e-05,2]
[396538369,1765043368245,-500.0,8.493e-05,2]
[396538370,1765043368270,-500.0,8.493e-05,2]
[396538371,1765043368294,-500.31820936,8.493e-05,2]
[396538372,1765043368317,-1544.85,8.493e-05,2]
[396538373,1765043368342,-500.0,8.493e-05,2]
[396538374,1765043368364,-500.0,8.493e-05,2]
[396538375,1765043368387,-549.9755756,8.493e-05,2]
[396538376,1765043368410,-500.0,8.493e-05,2]
[396538377,1765043368435,-500.0,8.493e-05,2]
[396538378,1765043368460,-500.0,8.493e-05,2]
[396538379,1765043368485,-500.0,8.493e-05,2]
[396538380,1765043368508,-500.0,8.493e-05,2]
[396538381,1765043368531,-500.0,8.493e-05,2]
[396538382,1765043368553,-500.0,8.493e-05,2]
[396538383,1765043368576,-621.8,8.493e-05,2]
[396538384,1765043368600,-579.35,8.493e-05,2]
[396538385,1765043368624,-500.0,8.493e-05,2]
[396538386,1765043368646,-500.0,8.493e-05,2]
[396538387,1765043368668,-449.5153879,8.493e-05,2]
[396538388,1765043368692,-500.0,8.493e-05,2]
[396538389,1765043368715,-1199.3,8.493e-05,2]
[396538390,1765043368740,-500.0,8.493e-05,2]
[396538391,1765043368764,-500.0,8.493e-05,2]
[396538392,1765043368786,-500.0,8.493e-05,2]
[396538393,1765043368809,-519.15,8.493e-05,2]
[396538394,1765043368832,-500.0,8.493e-05,2]
[396538395,1765043368857,-500.0,8.493e-05,2]
[396538396,1765043368880,-500.0,8.493e-05,2]
[396538397,1765043368904,-500.0,8.493e-05,2]
[396538398,1765043368929,-500.0,8.493e-05,2]
[396538399,1765043368951,-500.0,8.493e-05,2]
[396538400,1765043368974,-500.0,8.493e-05,2]
[396538401,1765043368996,-1740.34,8.493e-05,2]
[396538402,1765043369021,-532.07346105,8.493e-05,2]
[396538403,1765043369044,-500.0,8.493e-05,2]
[396538404,1765043369066,-1385.13,8.493e-05,2]
[396538405,1765043369089,-500.0,8.493e-05,2]
[396538406,1765043369111,-500.0,8.493e-05,2]
[396538407,1765043369133,-500.0,8.493e-05,2]
[396538408,1765043369156,-500.0,8.493e-05,2]
[396538409,1765043369178,-750.94,8.493e-05,2]
[396538410,1765043369202,-1514.34,8.493e-05,2]
[396538411,1765043369225,-1506.89,8.493e-05,2]
[396538412,1765043369248,-500.0,8.493e-05,2]
[396538413,1765043369271,-649.44,8.493e-05,2]
[396538414,1765043369294,-500.0,8.493e-05,2]
[396538415,1765043369317,-1734.07,8.493e-05,2]
[396538416,1765043369340,-500.0,8.493e-05,2]
[396538417,1765043369362,-500.0,8.493e-05,2]
[396538418,1765043369386,-495.94156231,8.493e-05,2]
[396538419,1765043369409,-500.0,8.493e-05,2]
[396538420,1765043369432,-611.49,8.493e-05,2]
[396538421,1765043369454,-500.0,8.493e-05,2]
[396538422,1765043369477,-500.0,8.493e-05,2]
[396538423,1765043369499,-757.91,8.493e-05,2]
[396538424,1765043369521,-500.0,8.493e-05,2]
[396538425,1765043369543,-500.0,8.493e-05,2]
[396538426,1765043369566,-500.0,8.493e-05,2]
[396538427,1765043369588,-500.0,8.493e-05,2]
[396538428,1765043369611,-500.0,8.493e-05,2]
[396538429,1765043369633,-766.08,8.493e-05,2]
[396538430,1765043369656,-551.04,8.493e-05,2]
[396538431,1765043369680,-500.0,8.493e-05,2]
[396538432,1765043369703,-376.16338554,8.493e-05,2]
[396538433,1765043369725,-500.0,8.493e-05,2]
[396538434,1765043369747,-500.0,8.493e-05,2]
[396538435,1765043369771,-500.0,8.493e-05,2]
[396538436,1765043369793,-500.0,8.493e-05,2]
[396538437,1765043369816,-1355.0,8.493e-05,2]
[396538438,1765043369841,-581.04,8.493e-05,2]
[396538439,1765043369864,-500.0,8.493e-05,2]
[396538440,1765043369887,-500.0,8.493e-05,2]
[396538441,1765043369911,-684.95,8.493e-05,2]
[396538442,1765043369934,-1008.46,8.493e-05,2]
[396538443,1765043369956,-500.0,8.493e-05,2]
[396538444,1765043369978,-500.0,8.493e-05,2]
[396538445,1765043370000,-500.0,8.493e-05,2]
[396538446,1765043370022,-500.0,8.493e-05,2]
[396538447,1765043370045,-500.0,8.493e-05,2]
[396538448,1765043370068,-529.79,8.493e-05,2]
[396538449,1765043370091,-500.0,8.493e-05,2]
[396538450,1765043370114,-500.0,8.493e-05,2]
[396538451,1765043370138,-1735.38,8.493e-05,2]
[396538452,1765043370162,-347.16128811,8.493e-05,2]
[396538453,1765043370184,-500.0,8.493e-05,2]
[396538454,1765043370208,-500.0,8.493e-05,2]
[396538455,1765043370231,-704.8,8.493e-05,2]
[396538456,1765043370254,-500.0,8.493e-05,2]
[396538457,1765043370276,-500.0,8.493e-05,2]
[396538458,1765043370299,-500.0,8.493e-05,2]
[396538459,1765043370324,-1300.0,8.493e-05,2]
[396538460,1765043370349,-1781.16,8.493e-05,2]
[396538461,1765043370374,-500.0,8.493e-05,2]
[396538462,1765043370397,-500.0,8.493e-05,2]
[396538463,1765043370420,-845.91,8.493e-05,2]
[396538464,1765043370444,-500.0,8.493e-05,2]
[396538465,1765043370467,-500.0,8.493e-05,2]
[396538466,1765043370489,-500.0,8.493e-05,2]
[396538467,1765043370511,-548.25,8.493e-05,2]
[396538468,1765043370703,-500.0,8.493e-05,2]
[396538469,1765043370728,-500.0,8.493e-05,2]
[396538470,1765043370752,-727.07,8.493e-05,2]
[396538471,1765043370776,-500.0,8.493e-05,2]
[396538472,1765043370799,-667.4,8.493e-05,2]
[396538473,1765043370824,-500.0,8.493e-05,2]
[396538474,1765043370851,-752.93,8.493e-05,2]
[396538475,1765043370877,-500.0,8.493e-05,2]
[396538476,1765043370901,-500.0,8.493e-05,2]
[396538477,1765043370926,-598.34,8.493e-05,2]
[396538478,1765043370949,-500.0,8.493e-05,2]
[396538479,1765043370974,-3288.25,8.493e-05,2]
[396538480,1765043370999,-2289.16,8.493e-05,2]
[396538481,1765043371024,-500.0,8.493e-05,2]
[396538482,1765043371047,-500.0,8.493e-05,2]
[396538483,1765043371071,-500.0,8.493e-05,2]
[396538484,1765043371094,-1053.71,8.493e-05,2]
[396538485,1765043371117,-500.0,8.493e-05,2]
[396538486,1765043371141,-791.22,8.493e-05,2]
[396538487,1765043371166,-2586.42,8.493e-05,2]
[396538488,1765043371196,-500.0,8.493e-05,2]
[396538489,1765043371222,-1376.77,8.493e-05,2]
[396538490,1765043371246,-500.0,8.493e-05,2]
[396538491,1765043371271,-500.0,8.493e-05,2]
[396538492,1765043371295,-500.0,8.493e-05,2]
[396538493,1765043371319,-1683.77,8.493e-05,2]
[396538494,1765043371342,-500.0,8.493e-05,2]
[396538495,1765043371366,-1071.78,8.493e-05,2]
[396538496,1765043371390,-500.0,8.493e-05,2]
[396538497,1765043371414,-500.0,8.493e-05,2]
[396538498,1765043371437,-1182.51,8.493e-05,2]
[396538499,1765043371461,-614.27,8.493e-05,2]
[396538500,1765043371484,-500.0,8.493e-05,2]
[396538501,1765043371507,-500.0,8.493e-05,2]
[396538502,1765043371530,-500.0,8.493e-05,2]
[396538503,1765043371553,-1262.1,8.493e-05,2]
[396538504,1765043371575,-561.56,8.493e-05,2]
[396538505,1765043371600,-500.0,8.493e-05,2]
[396538506,1765043371622,-500.0,8.493e-05,2]
[396538507,1765043371647,-500.0,8.493e-05,2]
[396538508,1765043371669,-500.0,8.493e-05,2]
[396538509,1765043371694,-500.0,8.493e-05,2]
[396538510,1765043371719,-500.0,8.493e-05,2]
[396538511,1765043371743,-742.31,8.493e-05,2]
[396538512,1765043371765,-2940.75,8.493e-05,2]
[396538513,1765043371788,-666.27,8.493e-05,2]
[396538514,1765043371812,-500.0,8.493e-05,2]
[396538515,1765043371835,-1296.67,8.493e-05,2]
[396538516,1765043371860,-500.0,8.493e-05,2]
[396538517,1765043371884,-500.0,8.493e-05,2]
[396538518,1765043371908,-500.0,8.493e-05,2]
[396538519,1765043371931,-500.0,8.493e-05,2]
[396538520,1765043371953,-500.0,8.493e-05,2]
[396538521,1765043371976,-500.0,8.493e-05,2]
[396538522,1765043372000,-850.67,8.493e-05,2]
[396538523,1765043372023,-814.86,8.493e-05,2]
[396538524,1765043372046,-1895.97,8.493e-05,2]
[396538525,1765043372069,-500.0,8.493e-05,2]
[396538526,1765043372094,-564.65,8.493e-05,2]
[396538527,1765043372118,-1406.3087706,8.493e-05,2]
[396538528,1765043376538,-524.63,8.219e-05,2]
[396538529,1765043376566,-500.0,8.219e-05,2]
[396538530,1765043376593,-500.0,8.219e-05,2]
[396538531,1765043376620,-566.35,8.219e-05,2]
[396538532,1765043376649,-821.4412294,8.493e-05,2]
[396538533,1765043376675,-500.0,8.493e-05,2]
[396538534,1765043376701,-500.0,8.493e-05,2]
[396538535,1765043376727,-500.0,8.493e-05,2]
[396538536,1765043376752,-736.82,8.493e-05,2]
[396538537,1765043376776,-823.15,8.493e-05,2]
[396538538,1765043376800,-500.0,8.493e-05,2]
[396538539,1765043376822,-1497.04,8.493e-05,2]
[396538540,1765043376845,-500.0,8.493e-05,2]
[396538541,1765043376870,-500.0,8.493e-05,2]
[396538542,1765043376894,-531.02,8.493e-05,2]
[396538543,1765043376918,-500.0,8.493e-05,2]
[396538544,1765043376942,-500.0,8.493e-05,2]
[396538545,1765043376965,-672.19,8.493e-05,2]
[396538546,1765043376990,-500.0,8.493e-05,2]
[396538547,1765043377015,-500.0,8.493e-05,2]
[396538548,1765043377037,-500.0,8.493e-05,2]
[396538549,1765043377062,-500.0,8.493e-05,2]
[396538550,1765043377087,-500.0,8.493e-05,2]
[396538551,1765043377112,-223.3878739,8.493e-05,2]
[396538552,1765043377135,-500.0,8.493e-05,2]
[396538553,1765043377159,-555.84,8.493e-05,2]
[396538554,1765043377184,-500.0,8.493e-05,2]
[396538555,1765043377207,-500.0,8.493e-05,2]
[396538556,1765043377231,-500.0,8.493e-05,2]
[396538557,1765043377255,-500.0,8.493e-05,2]
[396538558,1765043377279,-500.0,8.493e-05,2]
[396538559,1765043377302,-500.0,8.493e-05,2]
[396538560,1765043377326,-500.0,8.493e-05,2]
[396538561,1765043377349,-2129.74,8.493e-05,2]
[396538562,1765043377372,-500.0,8.493e-05,2]
[396538563,1765043377395,-500.0,8.493e-05,2]
[396538564,1765043377420,-500.0,8.493e-05,2]
[396538565,1765043377444,-500.0,8.493e-05,2]
[396538566,1765043377469,-744.58,8.493e-05,2]
[396538567,1765043377494,-500.0,8.493e-05,2]
[396538568,1765043377517,-500.0,8.493e-05,2]
[396538569,1765043377542,-2788.95,8.493e-05,2]
[396538570,1765043377566,-500.0,8.493e-05,2]
[396538571,1765043377591,-778.64,8.493e-05,2]
[396538572,1765043377614,-500.0,8.493e-05,2]
[396538573,1765043377637,-513.43,8.493e-05,2]
[396538574,1765043377660,-500.0,8.493e-05,2]
[396538575,1765043377683,-500.0,8.493e-05,2]
[396538576,1765043377705,-500.0,8.493e-05,2]
[396538577,1765043377729,-500.0,8.493e-05,2]
[396538578,1765043377752,-726.22,8.493e-05,2]
[396538579,1765043377775,-500.0,8.493e-05,2]
[396538580,1765043377797,-500.0,8.493e-05,2]
[396538581,1765043377819,-1010.34,8.493e-05,2]
[396538582,1765043377844,-508.98,8.493e-05,2]
[396538583,1765043377867,-500.0,8.493e-05,2]
[396538584,1765043377889,-500.0,8.493e-05,2]
[396538585,1765043377912,-500.0,8.493e-05,2]
[396538586,1765043377935,-500.0,8.493e-05,2]
[396538587,1765043377959,-500.0,8.493e-05,2]
[396538588,1765043377982,-500.0,8.493e-05,2]
[396538589,1765043378006,-500.0,8.493e-05,2]
[396538590,1765043378029,-500.0,8.493e-05,2]
[396538591,1765043378052,-500.0,8.493e-05,2]
[396538592,1765043378076,-500.0,8.493e-05,2]
[396538593,1765043378101,-500.0,8.493e-05,2]
[396538594,1765043378126,-258.91689963,8.493e-05,2]
[396538595,1765043378151,-500.0,8.493e-05,2]
[396538596,1765043378345,-500.0,8.493e-05,2]
[396538597,1765043378372,-500.0,8.493e-05,2]
[396538598,1765043378398,-1454.68,8.493e-05,2]
[396538599,1765043378423,-500.0,8.493e-05,2]
[396538600,1765043378447,-1046.32,8.493e-05,2]
[396538601,1765043378471,-500.0,8.493e-05,2]
[396538602,1765043378495,-500.0,8.493e-05,2]
[396538603,1765043378520,-804.48,8.493e-05,2]
[396538604,1765043378544,-179.41337202,8.493e-05,2]
[396538605,1765043378568,-500.0,8.493e-05,2]
[396538606,1765043378592,-500.0,8.493e-05,2]
[396538607,1765043378615,-500.0,8.493e-05,2]
[396538608,1765043378640,-1451.78,8.493e-05,2]
[396538609,1765043378664,-500.0,8.493e-05,2]
[396538610,1765043378687,-500.0,8.493e-05,2]
[396538611,1765043378713,-500.0,8.493e-05,2]
[396538612,1765043378738,-500.0,8.493e-05,2]
[396538613,1765043378762,-1478.49,8.493e-05,2]
[396538614,1765043378786,-500.0,8.493e-05,2]
[396538615,1765043378810,-500.0,8.493e-05,2]
[396538616,1765043378835,-1052.67,8.493e-05,2]
[396538617,1765043378863,-500.0,8.493e-05,2]
[396538618,1765043378889,-515.58,8.493e-05,2]
[396538619,1765043378914,-642.93,8.493e-05,2]
[396538620,1765043378940,-500.0,8.493e-05,2]
[396538621,1765043378964,-500.0,8.493e-05,2]
[396538622,1765043378989,-500.0,8.493e-05,2]
[396538623,1765043379012,-500.0,8.493e-05,2]
[396538624,1765043379036,-719.79,8.493e-05,2]
[396538625,1765043379060,-500.0,8.493e-05,2]
[396538626,1765043379085,-343.28141913,8.493e-05,2]
[396538627,1765043379108,-500.0,8.493e-05,2]
[396538628,1765043379133,-500.0,8.493e-05,2]
[396538629,1765043379158,-500.0,8.493e-05,2]
[396538630,1765043379180,-672.6,8.493e-05,2]
[396538631,1765043379204,-694.55,8.493e-05,2]
[396538632,1765043379227,-500.0,8.493e-05,2]
[396538633,1765043379251,-500.0,8.493e-05,2]
[396538634,1765043379274,-1810.93,8.493e-05,2]
[396538635,1765043379298,-500.0,8.493e-05,2]
[396538636,1765043379320,-500.0,8.493e-05,2]
[396538637,1765043379344,-547.43,8.493e-05,2]
[396538638,1765043379369,-10722.49,8.493e-05,2]
[396538639,1765043379392,-500.0,8.493e-05,2]
[396538640,1765043379415,-500.0,8.493e-05,2]
[396538641,1765043379438,-500.0,8.493e-05,2]
[396538642,1765043379461,-500.0,8.493e-05,2]
[396538643,1765043379484,-799.64,8.493e-05,2]
[396538644,1765043379509,-500.0,8.493e-05,2]
[396538645,1765043379532,-500.0,8.493e-05,2]
[396538646,1765043379555,-500.0,8.493e-05,2]
[396538647,1765043379579,-500.0,8.493e-05,2]
[396538648,1765043379600,-500.0,8.493e-05,2]
[396538649,1765043379622,-500.0,8.493e-05,2]
[396538650,1765043379644,-500.0,8.493e-05,2]
[396538651,1765043379666,-500.0,8.493e-05,2]
[396538652,1765043379688,-1068.68,8.493e-05,2]
[396538653,1765043379710,-500.0,8.493e-05,2]
[396538654,1765043379732,-500.0,8.493e-05,2]
[396538655,1765043379754,-708.6,8.493e-05,2]
[396538656,1765043379776,-637.12,8.493e-05,2]
[396538657,1765043379798,-500.0,8.493e-05,2]
[396538658,1765043379821,-3239.38,8.493e-05,2]
[396538659,1765043379848,-500.0,8.493e-05,2]
[396538660,1765043379871,-791.57,8.493e-05,2]
[396538661,1765043379894,-1350.95,8.493e-05,2]
[396538662,1765043379918,-5989.01,8.493e-05,2]
[396538663,1765043379941,-570.91,8.493e-05,2]
[396538664,1765043379965,-516.27,8.493e-05,2]
[396538665,1765043379988,-1560.3,8.493e-05,2]
[396538666,1765043380011,-1137.64,8.493e-05,2]
[396538667,1765043380032,-500.0,8.493e-05,2]
[396538668,1765043380056,-534.65,8.493e-05,2]
[396538669,1765043380078,-526.88,8.493e-05,2]
[396538670,1765043380101,-1194.26,8.493e-05,2]
[396538671,1765043380124,-500.0,8.493e-05,2]
[396538672,1765043380148,-1848.57,8.493e-05,2]
[396538673,1765043380172,-500.0,8.493e-05,2]
[396538674,1765043380199,-6619.28,8.493e-05,2]
[396538675,1765043380222,-4870.41,8.493e-05,2]
[396538676,1765043380246,-2044.14,8.493e-05,2]
[396538677,1765043380269,-500.0,8.493e-05,2]
[396538678,1765043380293,-1654.14,8.493e-05,2]
[396538679,1765043380318,-500.0,8.493e-05,2]
[396538680,1765043380344,-500.0,8.493e-05,2]
[396538681,1765043380369,-500.0,8.493e-05,2]
[396538682,1765043380393,-1484.26,8.493e-05,2]
[396538683,1765043380418,-1072.59,8.493e-05,2]
[396538684,1765043380442,-2956.61,8.493e-05,2]
[396538685,1765043380466,-3340.28,8.493e-05,2]
[396538686,1765043380491,-500.0,8.493e-05,2]
[396538687,1765043380514,-500.0,8.493e-05,2]
[396538688,1765043380540,-2969.19,8.493e-05,2]
[396538689,1765043380564,-500.0,8.493e-05,2]
[396538690,1765043380587,-904.74,8.493e-05,2]
[396538691,1765043380610,-500.0,8.493e-05,2]
[396538692,1765043380635,-500.0,8.493e-05,2]
[396538693,1765043380659,-3050.26,8.493e-05,2]
[396538694,1765043380683,-500.0,8.493e-05,2]
[396538695,1765043380708,-500.0,8.493e-05,2]
[396538696,1765043380732,-2469.33,8.493e-05,2]
[396538697,1765043380757,-500.0,8.493e-05,2]
[396538698,1765043380781,-804.65,8.493e-05,2]
[396538699,1765043380807,-12444.98,8.493e-05,2]
[396538700,1765043380831,-500.0,8.493e-05,2]
[396538701,1765043381014,-500.0,8.493e-05,2]
[396538702,1765043381038,-165.87762298,8.493e-05,2]
[396538703,1765043381061,-500.0,8.493e-05,2]
[396538704,1765043381084,-941.93,8.493e-05,2]
[396538705,1765043381106,-500.0,8.493e-05,2]
[396538706,1765043381129,-2040.44,8.493e-05,2]
[396538707,1765043381153,-1402.63,8.493e-05,2]
[396538708,1765043381176,-1586.86,8.493e-05,2]
[396538709,1765043381202,-500.0,8.493e-05,2]
[396538710,1765043381226,-500.0,8.493e-05,2]
[396538711,1765043381251,-2627.77,8.493e-05,2]
[396538712,1765043381274,-500.0,8.493e-05,2]
[396538713,1765043381299,-1122.46,8.493e-05,2]
[396538714,1765043381326,-636.85,8.493e-05,2]
[396538715,1765043381350,-795.04,8.493e-05,2]
[396538716,1765043381375,-507.79,8.493e-05,2]
[396538717,1765043381400,-6014.14,8.493e-05,2]
[396538718,1765043381426,-15449.84158294,8.493e-05,2]
[396538719,1765043381641,175.84,6.705e-05,2]
[396538720,1765043382590,-151.36159493,7.025e-05,2]
[396538721,1765043384676,-173.86943059,7.025e-05,2]
[396538722,1765043385811,-26.43897448,7.025e-05,2]
[396538723,1765043385835,-162.84174801,7.344e-05,2]
[396538724,1765043389105,-184.44347119,7.344e-05,2]
[396538725,1765043390275,-180.2247808,7.344e-05,2]
[396538726,1765043391063,-305.77711622,7.663e-05,2]
[396538727,1765043393085,-215.10551669,7.663e-05,2]
[396538728,1765043402935,-182.46736709,7.663e-05,2]
[396538729,1765043402962,-879.18,7.982e-05,2]
[396538730,1765043402988,-500.0,8.137e-05,2]
[396538731,1765043403014,-2064.02374575,8.14e-05,2]
[396538732,1765043403039,-300.0,8.218e-05,2]
[396538733,1765043403064,-500.0,8.219e-05,2]
[396538734,1765043403090,-500.0,8.219e-05,2]
[396538735,1765043403116,-500.0,8.219e-05,2]
[396538736,1765043403142,-1694.52,8.219e-05,2]
[396538737,1765043403168,-500.0,8.219e-05,2]
[396538738,1765043403194,-500.0,8.219e-05,2]
[396538739,1765043403221,-500.0,8.219e-05,2]
[396538740,1765043403249,-2721.76,8.219e-05,2]
[396538741,1765043403275,-500.0,8.219e-05,2]
[396538742,1765043403300,-500.0,8.219e-05,2]
[396538743,1765043403325,-29407.93,8.219e-05,2]
[396538744,1765043403350,-500.0,8.219e-05,2]
[396538745,1765043403375,-500.0,8.219e-05,2]
[396538746,1765043403400,-530.51290356,8.219e-05,2]
[396538747,1765043403425,-500.0,8.219e-05,2]
[396538748,1765043403449,-1416.11,8.219e-05,2]
[396538749,1765043403473,-1635.82,8.219e-05,2]
[396538750,1765043403499,-500.0,8.219e-05,2]
[396538751,1765043403522,-500.0,8.219e-05,2]
[396538752,1765043403547,-1516.29,8.219e-05,2]
[396538753,1765043403570,-500.0,8.219e-05,2]
[396538754,1765043403594,-500.0,8.219e-05,2]
[396538755,1765043403774,-9828.94,8.219e-05,2]
[396538756,1765043403801,-753.02,8.219e-05,2]
[396538757,1765043403834,-500.0,8.219e-05,2]
[396538758,1765043403872,-500.0,8.219e-05,2]
[396538759,1765043403899,-500.0,8.219e-05,2]
[396538760,1765043403928,-2440.11,8.219e-05,2]
[396538761,1765043403955,-1285.74,8.219e-05,2]
[396538762,1765043403984,-11407.9,8.219e-05,2]
[396538763,1765043404010,-2263.56,8.219e-05,2]
[396538764,1765043404035,-500.0,8.219e-05,2]
[396538765,1765043404065,-1055.02,8.302e-05,2]
[396538766,1765043404095,-300.0,8.382e-05,2]
[396538767,1765043404123,-300.0,8.382e-05,2]
[396538768,1765043404151,-300.0,8.382e-05,2]
[396538769,1765043404179,-300.0,8.382e-05,2]
[396538770,1765043404205,-300.0,8.382e-05,2]
[396538771,1765043404235,-300.0,8.382e-05,2]
[396538772,1765043404262,-300.0,8.382e-05,2]
[396538773,1765043404289,-300.0,8.382e-05,2]
[396538774,1765043404317,-300.0,8.382e-05,2]
[396538775,1765043404345,-300.0,8.382e-05,2]
[396538776,1765043404375,-300.0,8.382e-05,2]
[396538777,1765043404403,-300.0,8.382e-05,2]
[396538778,1765043404432,-300.0,8.382e-05,2]
[396538779,1765043404460,-300.0,8.382e-05,2]
[396538780,1765043404487,-300.0,8.382e-05,2]
[396538781,1765043404516,-600.0,8.382e-05,2]
[396538782,1765043404544,-5077.37841706,8.493e-05,2]
[396538783,1765043404569,-500.0,8.493e-05,2]
[396538784,1765043404594,-500.0,8.493e-05,2]
[396538785,1765043404620,-233.31863402,8.493e-05,2]
[396538786,1765043404645,-2554.57,8.493e-05,2]
[396538787,1765043404671,-500.0,8.493e-05,2]
[396538788,1765043404697,-660.79,8.493e-05,2]
[396538789,1765043404722,-500.0,8.493e-05,2]
[396538790,1765043404748,-500.0,8.493e-05,2]
[396538791,1765043404774,-544.14,8.493e-05,2]
[396538792,1765043404800,-3533.77,8.493e-05,2]
[396538793,1765043404825,-500.0,8.493e-05,2]
[396538794,1765043404849,-512.82119473,8.493e-05,2]
[396538795,1765043404875,-500.0,8.493e-05,2]
[396538796,1765043404901,-500.0,8.493e-05,2]
[396538797,1765043404927,-651.75,8.493e-05,2]
[396538798,1765043404955,-627.97,8.493e-05,2]
[396538799,1765043404981,-582.3726593,8.493e-05,2]
[396538800,1765043405007,-1869.21,8.493e-05,2]
[396538801,1765043405033,-500.0,8.493e-05,2]
[396538802,1765043405058,-500.0,8.493e-05,2]
[396538803,1765043405085,-500.0,8.493e-05,2]
[396538804,1765043405111,-2503.17,8.493e-05,2]
[396538805,1765043405137,-500.0,8.493e-05,2]
[396538806,1765043405164,-500.0,8.493e-05,2]
[396538807,1765043405190,-857.88,8.493e-05,2]
[396538808,1765043405218,-2215.96,8.493e-05,2]
[396538809,1765043405245,-500.0,8.493e-05,2]
[396538810,1765043405272,-500.0,8.493e-05,2]
[396538811,1765043405299,-2603.19,8.493e-05,2]
[396538812,1765043405324,-500.0,8.493e-05,2]
[396538813,1765043405351,-2326.63,8.493e-05,2]
[396538814,1765043405378,-4440.51,8.493e-05,2]
[396538815,1765043405404,-2072.17,8.493e-05,2]
[396538816,1765043405429,-596.25,8.493e-05,2]
[396538817,1765043405455,-256.77061143,8.493e-05,2]
[396538818,1765043405481,-500.0,8.493e-05,2]
[396538819,1765043405508,-2470.8,8.493e-05,2]
[396538820,1765043405532,-500.0,8.493e-05,2]
[396538821,1765043405558,-15045.82,8.493e-05,2]
[396538822,1765043405582,-2600.16,8.493e-05,2]
[396538823,1765043405606,-500.0,8.493e-05,2]
[396538824,1765043405628,-500.0,8.493e-05,2]
[396538825,1765043405652,-500.0,8.493e-05,2]
[396538826,1765043405677,-500.0,8.493e-05,2]
[396538827,1765043405701,-500.0,8.493e-05,2]
[396538828,1765043405727,-500.0,8.493e-05,2]
[396538829,1765043405751,-709.09,8.493e-05,2]
[396538830,1765043405776,-500.0,8.493e-05,2]
[396538831,1765043405803,-847.67,8.493e-05,2]
[396538832,1765043405829,-807.06,8.493e-05,2]
[396538833,1765043405856,-500.0,8.493e-05,2]
[396538834,1765043405881,-500.0,8.493e-05,2]
[396538835,1765043405906,-500.0,8.493e-05,2]